bitfinex/quotes_BTCUSD_20240613
["timestamp","ask_amount","ask_price","bid_price","bid_amount"]
[1718296558969,1.087036,66591.0,66585.0,0.00039432]
[1718296559170,1.087036,66591.0,66590.0,0.00533792]
[1718296559371,1.087036,66591.0,66584.0,0.00039432]
[1718296559577,1.087036,66591.0,66590.0,0.01933792]
[1718296559777,1.087036,66591.0,66590.0,0.014]
[1718296560359,1.088036,66591.0,66590.0,0.014]
[1718296560579,1.10711346,66591.0,66590.0,0.014]
[1718296560745,1.10611346,66591.0,66590.0,0.011]
[1718296561112,1.10711346,66591.0,66590.0,0.02]
[1718296561523,1.10611346,66591.0,66590.0,0.011]
[1718296561886,1.10611346,66591.0,66590.0,0.019]
[1718296561887,1.088036,66591.0,66590.0,0.019]
[1718296562300,1.088036,66591.0,66590.0,0.01939432]
[1718296562503,0.602636,66591.0,66590.0,0.01939432]
[1718296562690,0.602636,66591.0,66590.0,0.01374562]
[1718296563121,0.602636,66591.0,66590.0,0.11374562]
[1718296563342,0.602636,66591.0,66590.0,0.35806555]
[1718296563560,0.603636,66591.0,66590.0,0.74076446]
[1718296563994,0.603636,66591.0,66590.0,1.19126204]
[1718296565483,0.603636,66591.0,66590.0,1.14660308]
[1718296566284,0.603636,66591.0,66590.0,2.07852413]
[1718296566285,0.53987957,66591.0,66590.0,2.07852413]
[1718296566483,0.50950331,66591.0,66590.0,2.30362413]
[1718296567337,0.50850331,66591.0,66590.0,2.45084381]
[1718296567749,0.50850331,66591.0,66590.0,2.45684381]
[1718296568148,0.50950331,66591.0,66590.0,2.47084381]
[1718296568579,0.50950331,66591.0,66590.0,2.42616307]
[1718296569604,0.50850331,66591.0,66590.0,2.41216307]
[1718296569987,0.50850331,66591.0,66590.0,2.42616307]
[1718296570397,0.50850331,66591.0,66590.0,2.51618307]
[1718296570599,0.50850331,66591.0,66590.0,2.56618307]
[1718296570807,0.50850331,66591.0,66590.0,2.61086381]
[1718296571166,0.50850331,66591.0,66590.0,2.56618307]
[1718296572377,0.50850331,66591.0,66590.0,2.59259484]
[1718296573207,0.50850331,66591.0,66590.0,3.09080404]
[1718296573405,0.50850331,66591.0,66590.0,3.04614318]
[1718296573585,0.50850331,66591.0,66590.0,2.60402709]
[1718296573855,0.50850331,66591.0,66590.0,2.28324518]
[1718296574024,0.50750331,66591.0,66590.0,2.80524518]
[1718296574427,0.50750331,66591.0,66590.0,2.5078286]
[1718296574629,0.50750331,66591.0,66590.0,2.81921673]
[1718296574831,0.50750331,66591.0,66590.0,2.81921271]
[1718296575253,0.50534511,66591.0,66590.0,2.83321271]
[1718296575457,0.50534511,66591.0,66590.0,2.81921271]
[1718296575808,0.50534511,66591.0,66590.0,2.83681335]
[1718296575974,0.50534511,66591.0,66590.0,2.85081335]
[1718296576120,0.50534511,66591.0,66590.0,2.70926441]
[1718296576345,0.50534511,66591.0,66590.0,0.93483139]
[1718296576581,0.50534511,66591.0,66590.0,0.92083139]
[1718296576793,0.50534511,66591.0,66590.0,1.08413239]
[1718296577035,0.50534511,66591.0,66590.0,1.09813239]
[1718296577243,0.50534511,66591.0,66590.0,1.08413239]
[1718296577447,0.50534511,66591.0,66590.0,1.07013239]
[1718296577703,0.50534511,66591.0,66590.0,1.08413239]
[1718296578329,0.50534511,66591.0,66590.0,1.19813239]
[1718296578538,0.50534511,66591.0,66590.0,1.09813239]
[1718296578954,0.50534511,66591.0,66590.0,1.19813239]
[1718296579999,0.50534511,66591.0,66590.0,1.18413239]
[1718296580425,0.50534511,66591.0,66590.0,1.08413239]
[1718296580624,0.50534511,66591.0,66590.0,0.92083139]
[1718296580830,0.50534511,66591.0,66590.0,1.06834339]
[1718296581177,0.50534511,66591.0,66590.0,1.08234339]
[1718296581621,0.50534511,66591.0,66590.0,1.06834339]
[1718296582040,0.50534511,66591.0,66590.0,1.18234339]
[1718296582220,0.50534511,66591.0,66590.0,1.10534339]
[1718296582996,0.50534511,66591.0,66590.0,1.20534339]
[1718296583208,0.50534511,66591.0,66590.0,1.19134339]
[1718296583617,0.50534511,66591.0,66590.0,1.20534339]
[1718296583841,0.50534511,66591.0,66590.0,1.10534339]
[1718296584013,0.50534511,66591.0,66590.0,1.17734339]
[1718296584232,0.50534511,66591.0,66590.0,1.07734339]
[1718296584466,0.50534511,66591.0,66590.0,1.10534339]
[1718296584683,0.50534511,66591.0,66590.0,1.07470139]
[1718296585106,0.50534511,66591.0,66590.0,1.07555139]
[1718296585529,0.50534511,66591.0,66590.0,1.17555139]
[1718296586169,0.50534511,66591.0,66590.0,1.15795075]
[1718296588423,0.50534511,66591.0,66590.0,1.07454743]
[1718296589013,0.50534511,66591.0,66590.0,1.07458578]
[1718296589443,0.95964511,66591.0,66590.0,0.77500153]
[1718296589642,0.97872257,66591.0,66590.0,0.47500153]
[1718296589847,0.97872257,66591.0,66590.0,0.45840485]
[1718296590054,0.97872257,66591.0,66590.0,0.34562376]
[1718296590256,1.1230425,66591.0,66590.0,0.0342013]
[1718296590462,1.1230425,66591.0,66590.0,0.0202013]
[1718296590678,1.1230425,66591.0,66590.0,0.00085]
[1718296590882,1.1230425,66591.0,66590.0,0.01185]
[1718296590883,0.97872257,66591.0,66590.0,0.01185]
[1718296591095,0.97872257,66591.0,66590.0,0.02185]
[1718296591512,0.97872257,66591.0,66590.0,0.00085]
[1718296591719,0.98072257,66591.0,66590.0,0.00285]
[1718296591952,0.98172257,66591.0,66590.0,0.00285]
[1718296592198,0.97972257,66591.0,66590.0,0.00185]
[1718296592400,0.97972257,66591.0,66590.0,0.00285]
[1718296593236,0.97872257,66591.0,66590.0,0.00185]
[1718296593431,0.97872257,66591.0,66590.0,0.00385]
[1718296594519,0.97872257,66591.0,66590.0,0.00285]
[1718296594730,0.97872257,66591.0,66590.0,0.00085]
[1718296594933,0.97872257,66591.0,66590.0,0.00185]
[1718296595139,0.96264511,66591.0,66590.0,0.00085]
[1718296595338,0.98172257,66591.0,66590.0,0.00085]
[1718296595518,0.98472257,66591.0,66590.0,0.00185]
[1718296596682,0.49017746,66579.0,66578.0,0.0040662]
[1718296596830,1.1298425,66579.0,66578.0,0.0040662]
[1718296597239,1.1398425,66579.0,66578.0,0.0040662]
[1718296597823,1.1298425,66579.0,66578.0,0.0040662]
[1718296598044,1.1398425,66579.0,66578.0,0.0040662]
[1718296598264,1.1428425,66579.0,66578.0,0.0040662]
[1718296598474,1.1328425,66579.0,66578.0,0.0040662]
[1718296598693,1.1298425,66579.0,66578.0,0.0040662]
[1718296598900,1.1398425,66579.0,66578.0,0.0040662]
[1718296599107,1.1398425,66579.0,66578.0,0.0050662]
[1718296599108,1.1428425,66579.0,66578.0,0.0050662]
[1718296599519,1.1328425,66579.0,66578.0,0.0050662]
[1718296600959,1.1448425,66579.0,66578.0,0.0060662]
[1718296601370,1.1418425,66579.0,66578.0,0.0050662]
[1718296601580,1.1298425,66579.0,66578.0,0.0040662]
[1718296601860,1.1298425,66579.0,66567.0,1.27906262]
[1718296601861,0.22247746,66568.0,66567.0,0.02676262]
[1718296602097,0.98382257,66568.0,66567.0,0.02676262]
[1718296602242,0.99382257,66568.0,66567.0,0.02676262]
[1718296602449,0.98382257,66568.0,66567.0,0.02676262]
[1718296602656,1.1281425,66568.0,66567.0,0.02676262]
[1718296602854,1.1381425,66568.0,66567.0,0.02676262]
[1718296604219,1.1351425,66568.0,66567.0,0.02776262]
[1718296604441,0.99082257,66568.0,66567.0,0.02776262]
[1718296604678,0.97174511,66568.0,66567.0,0.02776262]
[1718296605116,0.50534511,66568.0,66567.0,0.22676262]
[1718296605317,0.50534511,66568.0,66567.0,0.33262662]
[1718296605318,0.51134511,66568.0,66567.0,0.33262662]
[1718296605517,0.51834511,66568.0,66567.0,0.33362662]
[1718296605951,0.51134511,66568.0,66567.0,0.33262662]
[1718296606157,0.51134511,66568.0,66567.0,0.64415683]
[1718296606864,0.51134511,66568.0,66567.0,0.64376251]
[1718296607076,0.50534511,66568.0,66567.0,0.3322323]
[1718296607317,0.51234511,66568.0,66567.0,0.3332323]
[1718296607531,0.51234511,66568.0,66567.0,0.1332323]
[1718296607757,0.50534511,66568.0,66567.0,0.75854655]
[1718296607962,0.50534511,66568.0,66567.0,1.01254655]
[1718296608172,0.50534511,66568.0,66567.0,1.43307863]
[1718296608372,0.50534511,66568.0,66567.0,1.33307863]
[1718296609042,0.50534511,66568.0,66567.0,1.32907863]
[1718296609258,0.50534511,66568.0,66567.0,1.32407863]
[1718296609720,0.50534511,66568.0,66567.0,1.42407863]
[1718296610390,0.50534511,66568.0,66567.0,1.32407863]
[1718296610620,0.50534511,66568.0,66567.0,1.32807863]
[1718296611139,0.50534511,66568.0,66567.0,1.43307863]
[1718296611649,0.50534511,66568.0,66567.0,1.45207863]
[1718296612300,0.50534511,66568.0,66567.0,1.14054655]
[1718296612521,0.50534511,66568.0,66567.0,1.14454655]
[1718296612729,0.50534511,66568.0,66567.0,1.45605997]
[1718296613062,0.50534511,66568.0,66567.0,0.90045997]
[1718296613272,0.50534511,66568.0,66567.0,0.91714288]
[1718296613478,0.50534511,66568.0,66567.0,0.89414288]
[1718296613692,0.50534511,66568.0,66567.0,0.99414288]
[1718296614451,0.50534511,66568.0,66567.0,0.89414288]
[1718296618185,0.50534511,66568.0,66567.0,0.66942863]
[1718296618394,0.72114511,66568.0,66567.0,0.36942863]
[1718296618826,0.72114511,66568.0,66567.0,0.36542863]
[1718296618941,0.72114511,66568.0,66567.0,0.34374572]
[1718296619147,0.72114511,66568.0,66567.0,0.34774572]
[1718296619367,0.72114511,66568.0,66567.0,0.35274572]
[1718296619594,0.50534511,66568.0,66567.0,0.45314004]
[1718296620472,0.50534511,66568.0,66567.0,0.44914004]
[1718296620933,0.50534511,66568.0,66567.0,0.44814004]
[1718296621126,0.50534511,66568.0,66567.0,0.44374572]
[1718296621320,0.50534511,66568.0,66567.0,0.44874572]
[1718296621683,0.50534511,66568.0,66567.0,0.45274572]
[1718296621978,0.50534511,66568.0,66567.0,0.44414004]
[1718296622261,0.50534511,66568.0,66567.0,0.45314004]
[1718296622667,0.50534511,66568.0,66567.0,0.44814004]
[1718296623008,0.50534511,66568.0,66567.0,0.69245997]
[1718296623794,0.50534511,66568.0,66567.0,0.58845997]
[1718296624214,0.50534511,66568.0,66567.0,0.59245997]
[1718296624426,0.50534511,66568.0,66567.0,0.59345997]
[1718296625006,0.50534511,66568.0,66567.0,0.59745997]
[1718296625206,0.50534511,66568.0,66567.0,0.59245997]
[1718296625573,0.50534511,66568.0,66567.0,0.73719826]
[1718296625814,0.50534511,66568.0,66567.0,0.71545997]
[1718296626034,0.50534511,66568.0,66567.0,0.80493656]
[1718296626489,0.50534511,66568.0,66567.0,0.82730571]
[1718296626940,0.50534511,66568.0,66567.0,0.71545997]
[1718296627144,0.47828488,66568.0,66567.0,3.47915671]
[1718296627350,0.46928488,66568.0,66567.0,4.41942526]
[1718296627555,0.46928488,66568.0,66567.0,4.31525037]
[1718296628191,0.45628488,66568.0,66567.0,4.51342705]
[1718296628384,0.45628488,66568.0,66567.0,4.91810655]
[1718296628621,0.34628488,66568.0,66567.0,4.91810655]
[1718296628840,0.43295979,66603.0,66567.0,4.91810655]
[1718296628841,0.43295979,66603.0,66590.0,0.20039432]
[1718296629061,0.60162501,66591.0,66590.0,0.6840677]
[1718296629506,0.60162501,66591.0,66590.0,0.68946987]
[1718296629718,0.60162501,66591.0,66590.0,0.78946987]
[1718296630393,0.60162501,66591.0,66590.0,0.9567898]
[1718296630626,0.60162501,66591.0,66590.0,1.4788738]
[1718296631049,0.60162501,66591.0,66590.0,1.3700838]
[1718296631267,0.60162501,66591.0,66590.0,0.8637898]
[1718296631471,0.60162501,66591.0,66590.0,1.36566021]
[1718296631691,0.60162501,66591.0,66590.0,1.28971221]
[1718296631933,0.60162501,66591.0,66590.0,1.2226218]
[1718296632147,0.60162501,66591.0,66590.0,1.1755068]
[1718296632579,0.60162501,66591.0,66590.0,0.67064486]
[1718296632790,0.60162501,66591.0,66590.0,0.42591559]
[1718296633003,0.60162501,66591.0,66590.0,0.58062984]
[1718296633218,0.60162501,66591.0,66590.0,1.21561884]
[1718296633421,0.60162501,66591.0,66590.0,0.62535786]
[1718296633637,0.60162501,66591.0,66590.0,0.93391052]
[1718296634059,0.60162501,66591.0,66590.0,0.62496384]
[1718296634255,0.60162501,66591.0,66590.0,0.67875383]
[1718296634529,0.80852501,66591.0,66590.0,0.63591559]
[1718296635415,0.82760247,66591.0,66590.0,0.43591559]
[1718296635653,0.82760247,66591.0,66590.0,0.45271807]
[1718296635850,0.82760247,66591.0,66590.0,0.14120465]
[1718296636052,0.82760247,66591.0,66590.0,0.04120465]
[1718296636242,0.82760247,66591.0,66590.0,0.13580248]
[1718296636859,0.60162501,66591.0,66590.0,0.13580248]
[1718296637279,0.60162501,66591.0,66590.0,0.4525087]
[1718296640002,0.60162501,66591.0,66590.0,0.30816061]
[1718296640582,0.60162501,66591.0,66590.0,0.10565191]
[1718296641316,0.60162501,66591.0,66590.0,0.02222727]
[1718296642265,0.60162501,66591.0,66590.0,0.02183295]
[1718296642774,1.05452501,66591.0,66590.0,0.02183295]
[1718296642977,1.05452501,66591.0,66590.0,0.22183295]
[1718296643099,1.05452501,66591.0,66590.0,0.31657536]
[1718296643304,1.05452501,66591.0,66590.0,0.32283244]
[1718296644179,1.07360247,66591.0,66590.0,0.12283244]
[1718296644354,1.07360247,66591.0,66590.0,0.10625708]
[1718296644562,1.07360247,66591.0,66590.0,0.00625708]
[1718296644766,1.07360247,66591.0,66590.0,0.1]
[1718296645448,0.01907746,66579.0,66578.0,0.4728]
[1718296645656,1.08446746,66579.0,66578.0,0.4728]
[1718296645894,0.4647,66578.0,66571.0,0.2]
[1718296646101,0.2156,66568.0,66567.0,0.02676262]
[1718296646310,0.81629,66568.0,66567.0,0.02676262]
[1718296646491,0.83536746,66568.0,66567.0,0.02676262]
[1718296646727,0.81629,66568.0,66567.0,0.02676262]
[1718296647625,0.83636746,66568.0,66567.0,0.0410197]
[1718296647833,0.81729,66568.0,66567.0,0.0410197]
[1718296648039,0.83536746,66568.0,66567.0,0.0330197]
[1718296648456,0.83636746,66568.0,66567.0,0.0390197]
[1718296648644,0.81729,66568.0,66567.0,0.0390197]
[1718296648879,0.81729,66568.0,66567.0,0.05695572]
[1718296649084,0.83636746,66568.0,66567.0,0.05695572]
[1718296649287,0.83146746,66568.0,66567.0,0.05695572]
[1718296649462,0.83146746,66568.0,66567.0,0.0390197]
[1718296649677,0.83146746,66568.0,66567.0,0.03276262]
[1718296649916,0.83246746,66568.0,66567.0,0.03976262]
[1718296650249,0.83146746,66568.0,66567.0,0.03376262]
[1718296650454,0.83046746,66568.0,66567.0,0.02676262]
[1718296650660,0.83146746,66568.0,66567.0,0.02676262]
[1718296650860,0.83046746,66568.0,66567.0,0.02676262]
[1718296651270,0.83046746,66568.0,66567.0,0.03308383]
[1718296651472,0.81339,66568.0,66567.0,0.03308383]
[1718296652150,0.83246746,66568.0,66567.0,0.03308383]
[1718296652354,0.81339,66568.0,66567.0,0.03308383]
[1718296652809,0.60269,66568.0,66567.0,0.03308383]
[1718296652985,0.60269,66568.0,66567.0,0.13308383]
[1718296653256,0.60369,66568.0,66567.0,0.13308383]
[1718296653501,0.60169,66568.0,66567.0,0.13308383]
[1718296653686,0.60069,66568.0,66567.0,0.13308383]
[1718296653892,0.62176746,66568.0,66567.0,0.13308383]
[1718296654192,0.62176746,66568.0,66567.0,0.14108383]
[1718296654193,0.62276746,66568.0,66567.0,0.14108383]
[1718296654339,0.62076746,66568.0,66567.0,0.14108383]
[1718296654745,0.62076746,66568.0,66567.0,0.14308383]
[1718296655107,0.61976746,66568.0,66567.0,0.13308383]
[1718296655263,0.61976746,66568.0,66567.0,0.04308383]
[1718296655264,1.06396746,66568.0,66567.0,0.04308383]
[1718296655631,1.06396746,66568.0,66567.0,0.04376262]
[1718296655632,1.06496746,66568.0,66567.0,0.04376262]
[1718296656467,1.06496746,66568.0,66567.0,0.05016353]
[1718296656693,1.06496746,66568.0,66567.0,0.04016353]
[1718296656694,1.06396746,66568.0,66567.0,0.04016353]
[1718296656900,1.04389,66568.0,66567.0,0.03316353]
[1718296657112,1.04489,66568.0,66567.0,0.04016353]
[1718296657375,1.04489,66568.0,66567.0,0.04616353]
[1718296657376,1.04589,66568.0,66567.0,0.04616353]
[1718296657585,1.04589,66568.0,66567.0,0.04016353]
[1718296657828,1.06396746,66568.0,66567.0,0.03316353]
[1718296658006,1.06396746,66568.0,66567.0,0.03416353]
[1718296658203,1.06396746,66568.0,66567.0,0.03616353]
[1718296658427,1.06296746,66568.0,66567.0,0.03516353]
[1718296658802,1.06296746,66568.0,66567.0,0.03616353]
[1718296659565,1.04389,66568.0,66567.0,0.03616353]
[1718296660013,0.60069,66568.0,66567.0,0.03416353]
[1718296660264,0.60069,66568.0,66567.0,0.03316353]
[1718296660481,0.60069,66568.0,66567.0,0.03555785]
[1718296660695,0.60069,66568.0,66567.0,0.03655785]
[1718296660906,0.60069,66568.0,66567.0,0.03416353]
[1718296661379,0.60069,66568.0,66567.0,0.03655785]
[1718296662053,0.60069,66568.0,66567.0,0.03355785]
[1718296662533,0.60069,66568.0,66567.0,0.34509049]
[1718296662786,0.60069,66568.0,66567.0,0.44509049]
[1718296663701,0.60069,66568.0,66567.0,0.44809049]
[1718296663912,0.60069,66568.0,66567.0,0.44709049]
[1718296664123,0.60069,66568.0,66567.0,0.13455785]
[1718296664352,0.60069,66568.0,66567.0,0.3460751]
[1718296664562,0.60069,66568.0,66567.0,0.4470751]
[1718296665172,0.60069,66568.0,66567.0,0.4450751]
[1718296665372,0.60069,66568.0,66567.0,0.56640012]
[1718296665590,0.60069,66568.0,66567.0,0.4480751]
[1718296665769,0.60069,66568.0,66567.0,0.56841097]
[1718296667799,0.60069,66568.0,66567.0,0.56801665]
[1718296668004,0.60069,66568.0,66567.0,0.56785224]
[1718296668534,0.60069,66568.0,66567.0,0.56824656]
[1718296668752,0.60069,66568.0,66567.0,0.56785224]
[1718296670124,0.60069,66568.0,66567.0,0.56824656]
[1718296670497,0.60069,66568.0,66567.0,0.4480751]
[1718296670683,0.60069,66568.0,66567.0,0.56844564]
[1718296671123,0.60069,66568.0,66567.0,0.81276557]
[1718296671970,0.60069,66568.0,66567.0,0.8581558]
[1718296672170,0.60069,66568.0,66567.0,0.7581558]
[1718296672810,0.60069,66568.0,66567.0,0.8581558]
[1718296673173,0.60069,66568.0,66567.0,0.7581558]
[1718296673393,0.60069,66568.0,66567.0,0.71336479]
[1718296673613,0.60069,66568.0,66567.0,0.81336479]
[1718296674717,0.60069,66568.0,66567.0,0.713303]
[1718296675834,0.60069,66568.0,66567.0,0.56898307]
[1718296676927,0.60069,66568.0,66567.0,0.56858875]
[1718296677131,0.60069,66568.0,66567.0,0.56798307]
[1718296677341,0.60069,66568.0,66567.0,0.56797718]
[1718296677553,0.60069,66568.0,66567.0,0.5852023]
[1718296677758,0.60069,66568.0,66567.0,0.5842023]
[1718296677964,0.60069,66568.0,66567.0,0.5862023]
[1718296678183,0.60069,66568.0,66567.0,0.58680798]
[1718296678397,0.61976746,66568.0,66567.0,0.58480798]
[1718296678625,0.87196746,66568.0,66567.0,0.58480798]
[1718296678845,0.85289,66568.0,66567.0,0.58685486]
[1718296679687,0.60069,66568.0,66567.0,0.58685486]
[1718296680157,0.60069,66568.0,66567.0,0.58585486]
[1718296680592,0.62076746,66568.0,66567.0,0.58585486]
[1718296680827,0.60069,66568.0,66567.0,0.58385486]
[1718296681042,0.87170247,66568.0,66567.0,0.58385486]
[1718296681251,1.2183224,66568.0,66567.0,0.1550715]
[1718296681471,1.2183224,66568.0,66567.0,0.03316353]
[1718296681679,1.2183224,66568.0,66567.0,0.02676262]
[1718296681896,1.2183224,66568.0,66567.0,0.02776262]
[1718296682116,1.2183224,66568.0,66553.0,0.03604999]
[1718296682117,0.02907746,66560.0,66553.0,0.03604999]
[1718296682330,1.21738739,66560.0,66553.0,0.03604999]
[1718296683210,1.20738739,66560.0,66553.0,0.03604999]
[1718296683432,1.20738739,66560.0,66554.0,0.08070996]
[1718296684943,1.21638739,66560.0,66559.0,0.00955]
[1718296685162,0.60969,66560.0,66559.0,0.00955]
[1718296685398,0.61069,66560.0,66559.0,0.66587307]
[1718296685619,0.18107822,66560.0,66559.0,0.95611648]
[1718296685826,0.10287658,66560.0,66559.0,1.77785607]
[1718296686036,0.10187658,66560.0,66559.0,1.67785607]
[1718296686246,0.10387658,66560.0,66559.0,1.10810307]
[1718296686448,0.09487658,66560.0,66559.0,1.13776916]
[1718296686923,0.09487658,66560.0,66559.0,1.02575907]
[1718296687162,0.09687658,66560.0,66559.0,1.02575907]
[1718296687417,0.09687658,66560.0,66559.0,0.80275907]
[1718296687626,0.09687658,66560.0,66559.0,0.64487307]
[1718296687850,0.09587658,66560.0,66559.0,0.7689977]
[1718296688036,0.09587658,66560.0,66559.0,0.65687307]
[1718296688241,0.09487658,66560.0,66559.0,0.66387307]
[1718296688441,0.09587658,66560.0,66559.0,0.67587307]
[1718296688900,0.09487658,66560.0,66559.0,0.66887307]
[1718296689337,0.09587658,66560.0,66559.0,0.68287307]
[1718296689748,0.09587658,66560.0,66559.0,0.69188542]
[1718296689931,0.09387658,66560.0,66559.0,0.66788542]
[1718296690686,0.09387658,66560.0,66559.0,0.65887307]
[1718296690903,0.09387658,66560.0,66559.0,0.51415882]
[1718296691061,0.09387658,66560.0,66559.0,0.4507434]
[1718296691287,0.09387658,66560.0,66559.0,0.45113772]
[1718296691500,0.09387658,66560.0,66559.0,0.57640462]
[1718296691501,0.09487658,66560.0,66559.0,0.57640462]
[1718296691759,0.09487658,66560.0,66559.0,0.43713772]
[1718296691760,0.09387658,66560.0,66559.0,0.43713772]
[1718296692390,0.09387658,66560.0,66559.0,0.77372455]
[1718296692626,0.09387658,66560.0,66559.0,0.77064665]
[1718296692825,0.07368926,66560.0,66559.0,1.22656665]
[1718296693218,0.07368926,66560.0,66559.0,1.53379493]
[1718296693419,0.07468926,66560.0,66559.0,1.54779493]
[1718296693661,0.07568926,66560.0,66559.0,1.56079493]
[1718296693804,0.00100001,66560.0,66559.0,1.93819808]
[1718296694005,1e-08,66560.0,66559.0,1.92519808]
[1718296694344,0.00100001,66560.0,66559.0,1.93719808]
[1718296694546,0.00100001,66560.0,66559.0,1.82800908]
[1718296694696,1e-08,66560.0,66559.0,1.81600908]
[1718296694892,1e-08,66560.0,66559.0,1.81589737]
[1718296695121,0.00100001,66560.0,66559.0,3.69340837]
[1718296695320,0.00093501,66568.0,66567.0,0.38039432]
[1718296695536,0.00093501,66568.0,66567.0,1.13281136]
[1718296695537,0.60182501,66568.0,66567.0,1.13281136]
[1718296695752,0.60182501,66568.0,66567.0,2.48382236]
[1718296695955,0.60182501,66568.0,66567.0,1.51157355]
[1718296696154,0.60182501,66568.0,66567.0,2.99710134]
[1718296696490,0.60182501,66568.0,66567.0,1.76549634]
[1718296696722,0.60182501,66568.0,66567.0,1.26783693]
[1718296696947,0.60182501,66568.0,66567.0,1.2768452]
[1718296697161,0.60282501,66568.0,66567.0,1.2858452]
[1718296697644,0.60282501,66568.0,66567.0,1.1058452]
[1718296697866,0.60382501,66568.0,66567.0,1.20483693]
[1718296698141,0.60282501,66568.0,66567.0,1.19683693]
[1718296698357,0.60282501,66568.0,66567.0,1.2058452]
[1718296698590,0.60382501,66568.0,66567.0,1.2138452]
[1718296698827,0.60382501,66568.0,66567.0,0.8942452]
[1718296699237,0.60282501,66568.0,66567.0,0.87623693]
[1718296699692,0.60382501,66568.0,66567.0,0.89424768]
[1718296699909,0.60382501,66568.0,66567.0,1.16141589]
[1718296700125,0.60282501,66568.0,66567.0,1.37201589]
[1718296700366,0.57610866,66568.0,66567.0,1.64017058]
[1718296700577,0.4504,66597.0,66582.0,0.1]
[1718296700780,0.4504,66597.0,66590.0,0.07255428]
[1718296700980,0.00507615,66590.0,66589.0,0.28969671]
[1718296701184,0.00507615,66590.0,66589.0,0.36723147]
[1718296701387,0.00507615,66590.0,66589.0,0.37317227]
[1718296701595,0.00507615,66590.0,66589.0,0.37316805]
[1718296702004,0.00507615,66590.0,66589.0,0.4543908]
[1718296702436,0.00507615,66590.0,66589.0,0.5543908]
[1718296702865,0.00507615,66590.0,66589.0,0.33488237]
[1718296703086,0.00507615,66590.0,66589.0,0.3059408]
[1718296703507,0.00507615,66590.0,66589.0,0.3199408]
[1718296703921,0.00507615,66590.0,66589.0,0.3339408]
[1718296704341,0.00507615,66590.0,66589.0,0.3199408]
[1718296704547,0.00507615,66590.0,66589.0,0.37070326]
[1718296704745,0.00507615,66590.0,66589.0,0.3259408]
[1718296704960,0.00507615,66590.0,66589.0,0.4511088]
[1718296705176,0.00507615,66590.0,66589.0,0.4371088]
[1718296705383,0.00507615,66590.0,66589.0,0.4511088]
[1718296705613,0.00507615,66590.0,66589.0,0.4651088]
[1718296706050,0.00507615,66590.0,66589.0,0.48300765]
[1718296707826,0.00507615,66590.0,66589.0,0.79507667]
[1718296707994,0.00507615,66590.0,66589.0,0.65032758]
[1718296708457,0.00507615,66590.0,66589.0,0.83982576]
[1718296708673,0.00507615,66590.0,66589.0,0.72582576]
[1718296708841,0.00507615,66590.0,66589.0,0.71182576]
[1718296709209,0.00507615,66590.0,66589.0,0.63632758]
[1718296709644,0.00507615,66590.0,66589.0,0.7033512]
[1718296710060,0.00507615,66590.0,66589.0,0.7173512]
[1718296710249,0.00507615,66590.0,66589.0,0.65032758]
[1718296710490,0.00507615,66590.0,66589.0,0.75032758]
[1718296710828,0.00507615,66590.0,66589.0,0.8173512]
[1718296711036,0.00507615,66590.0,66589.0,0.75032758]
[1718296711384,0.00507615,66590.0,66589.0,0.81732228]
[1718296711526,0.00507615,66590.0,66589.0,0.71732228]
[1718296712148,0.00507615,66590.0,66589.0,0.75032758]
[1718296712719,0.00507615,66590.0,66589.0,0.75502398]
[1718296712923,0.00507615,66590.0,66589.0,0.71037058]
[1718296713359,0.00507615,66590.0,66589.0,0.77300376]
[1718296713572,0.00507615,66590.0,66589.0,0.77385376]
[1718296713772,0.00507615,66590.0,66589.0,0.87385376]
[1718296713996,0.00601116,66590.0,66589.0,0.77385376]
[1718296714219,0.00601116,66590.0,66589.0,0.71122058]
[1718296714868,0.00601116,66590.0,66589.0,0.58005258]
[1718296715086,0.00601116,66590.0,66589.0,0.8789108]
[1718296715309,0.45661116,66590.0,66589.0,0.3948338]
[1718296715966,0.45661116,66590.0,66589.0,0.3347908]
[1718296716184,0.45661116,66590.0,66589.0,0.3207908]
[1718296716395,0.00601116,66590.0,66589.0,0.46511073]
[1718296716601,0.00601116,66590.0,66589.0,1.87504469]
[1718296716807,0.00601116,66590.0,66589.0,1.65922869]
[1718296717058,0.00601116,66590.0,66589.0,1.65822869]
[1718296717268,0.00601116,66590.0,66589.0,1.72623469]
[1718296717472,0.00601116,66590.0,66589.0,1.74023469]
[1718296717695,0.00601116,66590.0,66589.0,2.25423469]
[1718296717970,0.00601116,66590.0,66589.0,2.62547513]
[1718296718200,0.00601116,66590.0,66589.0,2.6024826]
[1718296718414,0.00601116,66590.0,66589.0,2.93432583]
[1718296718670,0.01947178,66616.0,66589.0,2.93432583]
[1718296718671,0.2572,66618.0,66615.0,0.2]
[1718296718963,0.00940501,66627.0,66617.0,0.07215996]
[1718296718964,0.217,66621.0,66617.0,0.07215996]
[1718296719245,0.217,66621.0,66617.0,0.17215996]
[1718296719504,0.217,66621.0,66618.0,0.45267145]
[1718296719756,0.217,66621.0,66619.0,0.1]
[1718296720045,0.217,66621.0,66619.0,0.14186888]
[1718296720325,0.23647178,66621.0,66620.0,0.00584045]
[1718296720580,0.217,66621.0,66620.0,0.00584045]
[1718296721334,0.217,66621.0,66617.0,0.012]
[1718296721335,0.23647178,66621.0,66617.0,0.012]
[1718296721584,0.01947178,66620.0,66617.0,0.012]
[1718296722329,0.01947178,66617.0,66616.0,0.1]
[1718296722561,0.61990178,66617.0,66616.0,0.1]
[1718296722787,0.60043,66617.0,66616.0,0.1]
[1718296722996,0.61990178,66617.0,66616.0,0.1]
[1718296723507,0.60043,66617.0,66616.0,0.1]
[1718296724151,0.60043,66617.0,66616.0,0.113]
[1718296725456,0.60043,66617.0,66616.0,0.11878205]
[1718296725712,0.60043,66617.0,66616.0,0.36610198]
[1718296725935,0.60043,66617.0,66616.0,0.19878205]
[1718296726348,0.60043,66617.0,66616.0,0.13078205]
[1718296726526,0.86673,66617.0,66616.0,0.03078205]
[1718296726728,0.88620178,66617.0,66616.0,0.11778205]
[1718296727066,0.88620178,66617.0,66616.0,0.10578205]
[1718296727281,0.88620178,66617.0,66616.0,0.13078205]
[1718296727484,0.86673,66617.0,66616.0,0.112]
[1718296727893,0.86673,66617.0,66616.0,0.011]
[1718296728267,0.86673,66617.0,66616.0,0.01]
[1718296728722,1.10780178,66617.0,66616.0,0.01]
[1718296728925,1.10780178,66617.0,66616.0,0.01578205]
[1718296729051,1.10780178,66617.0,66616.0,0.01]
[1718296729685,1.10780178,66617.0,66616.0,0.019]
[1718296730093,1.10780178,66617.0,66616.0,0.01]
[1718296730292,1.10780178,66617.0,66608.0,0.2]
[1718296730472,0.01947178,66610.0,66608.0,0.22053156]
[1718296730672,0.59470759,66609.0,66608.0,0.22053156]
[1718296731074,0.59470759,66609.0,66608.0,0.3]
[1718296731701,0.59470759,66609.0,66608.0,0.314]